fUSD/lending_fUSD_20240612
["ID","MTS","AMOUNT","RATE_DAILY","PERIOD"]
[329263780,1718205047170,-780.25,0.00019589,2]
[329263781,1718205047180,-991.6,0.00019589,2]
[329263783,1718205047192,-1190.52,0.00019589,2]
[329263784,1718205047203,-1014.23,0.00019589,2]
[329263786,1718205047215,-547.32,0.00019589,2]
[329263787,1718205047227,-3141.57,0.00019589,2]
[329263788,1718205047243,-670.27,0.00019589,2]
[329263789,1718205047253,-977.65,0.00019589,2]
[329263790,1718205047293,-609.32,0.00019589,2]
[329263791,1718205047304,-963.75,0.00019589,2]
[329263792,1718205047317,-670.97,0.00019589,2]
[329263793,1718205047343,-630.42,0.00019589,2]
[329263794,1718205047357,-2138.16,0.00019589,2]
[329263795,1718205047368,-650.2,0.00019589,2]
[329263796,1718205047378,-607.7,0.00019589,2]
[329263797,1718205047395,-500.0,0.00019589,2]
[329263798,1718205047406,-500.0,0.00019589,2]
[329263799,1718205047417,-1199.08,0.00019589,2]
[329263800,1718205047428,-635.08941897,0.00019589,2]
[329263801,1718205047441,-2003.87,0.00019589,2]
[329263802,1718205047456,-856.08,0.00019589,2]
[329263803,1718205047480,-2756.64,0.00019589,2]
[329263804,1718205047512,-614.98,0.00019589,2]
[329263805,1718205047535,-1019.92,0.00019589,2]
[329263806,1718205047547,-1351.67,0.00019589,2]
[329263807,1718205047558,-500.0,0.00019589,2]
[329263808,1718205047570,-814.36,0.00019589,2]
[329263809,1718205047591,-2577.01,0.00019589,2]
[329263810,1718205047603,-500.0,0.00019589,2]
[329263811,1718205047630,-500.0,0.00019589,2]
[329263812,1718205047649,-735.78,0.00019589,2]
[329263813,1718205047663,-1138.78,0.00019589,2]
[329263814,1718205047674,-809.91,0.00019589,2]
[329263815,1718205047685,-1692.1,0.00019589,2]
[329263816,1718205047695,-500.0,0.00019589,2]
[329263817,1718205047715,-834.93,0.00019589,2]
[329263818,1718205047730,-9146.0,0.00019647,2]
[329263819,1718205047741,-1424.0,0.000197,2]
[329263820,1718205047760,-500.0,0.00019726,2]
[329263821,1718205047776,-500.0,0.00019726,2]
[329263822,1718205047788,-500.0,0.00019726,2]
[329263823,1718205047799,-500.0,0.00019726,2]
[329263824,1718205047820,-500.0,0.00019726,2]
[329263825,1718205047836,-355.48931282,0.00019726,2]
[329263826,1718205047847,-500.0,0.00019726,2]
[329263827,1718205047859,-500.0,0.00019726,2]
[329263828,1718205047877,-500.0,0.00019726,2]
[329263829,1718205047889,-500.0,0.00019726,2]
[329263830,1718205047908,-662.11,0.00019726,2]
[329263831,1718205047920,-500.0,0.00019726,2]
[329263832,1718205047951,-500.0,0.00019726,2]
[329263833,1718205047964,-500.0,0.00019726,2]
[329263834,1718205047981,-500.0,0.00019726,2]
[329263835,1718205047992,-500.0,0.00019726,2]
[329263836,1718205048004,-500.0,0.00019726,2]
[329263837,1718205048017,-500.0,0.00019726,2]
[329263838,1718205048029,-500.0,0.00019726,2]
[329263839,1718205048042,-560.91748717,0.00019726,2]
[329263840,1718205048053,-500.0,0.00019726,2]
[329263841,1718205048064,-500.0,0.00019726,2]
[329263842,1718205048075,-500.0,0.00019726,2]
[329263843,1718205048086,-500.0,0.00019726,2]
[329263844,1718205048097,-500.0,0.00019726,2]
[329263845,1718205048107,-500.0,0.00019726,2]
[329263846,1718205048132,-500.0,0.00019726,2]
[329263847,1718205048143,-500.0,0.00019726,2]
[329263848,1718205048154,-500.0,0.00019726,2]
[329263849,1718205048166,-1175.58,0.00019726,2]
[329263850,1718205048178,-500.0,0.00019726,2]
[329263851,1718205048189,-156.61924611,0.00019726,2]
[329263852,1718205048200,-500.0,0.00019726,2]
[329263853,1718205048212,-500.0,0.00019726,2]
[329263854,1718205048226,-500.0,0.00019726,2]
[329263855,1718205048237,-500.0,0.00019726,2]
[329263856,1718205048247,-773.38,0.00019726,2]
[329263857,1718205048258,-500.0,0.00019726,2]
[329263858,1718205048270,-500.0,0.00019726,2]
[329263859,1718205048281,-500.0,0.00019726,2]
[329263860,1718205048292,-500.0,0.00019726,2]
[329263861,1718205048303,-500.0,0.00019726,2]
[329263862,1718205048315,-253.85126813,0.00019726,2]
[329263863,1718205048325,-500.0,0.00019726,2]
[329263864,1718205048336,-500.0,0.00019726,2]
[329263865,1718205048347,-500.0,0.00019726,2]
[329263866,1718205048358,-504.69,0.00019726,2]
[329263867,1718205048388,-500.0,0.00019726,2]
[329263868,1718205048400,-646.97506235,0.00019726,2]
[329263869,1718205048411,-855.36,0.00019726,2]
[329263870,1718205048422,-500.0,0.00019726,2]
[329263871,1718205048433,-500.0,0.00019726,2]
[329263872,1718205048444,-586.23,0.00019726,2]
[329263873,1718205048457,-596.37,0.00019726,2]
[329263874,1718205048467,-500.0,0.00019726,2]
[329263875,1718205048480,-500.0,0.00019726,2]
[329263876,1718205048490,-500.0,0.00019726,2]
[329263877,1718205048526,-500.0,0.00019726,2]
[329263878,1718205048540,-500.0,0.00019726,2]
[329263879,1718205048553,-500.0,0.00019726,2]
[329263880,1718205048564,-500.0,0.00019726,2]
[329263881,1718205048574,-500.0,0.00019726,2]
[329263882,1718205048585,-500.0,0.00019726,2]
[329263883,1718205048598,-500.0,0.00019726,2]
[329263884,1718205048609,-150.39096964,0.00019726,2]
[329263885,1718205048622,-500.0,0.00019726,2]
[329263886,1718205048633,-1292.71,0.00019726,2]
[329263887,1718205048644,-309.37960054,0.00019726,2]
[329263888,1718205048654,-500.0,0.00019726,2]
[329263889,1718205048665,-500.0,0.00019726,2]
[329263890,1718205048676,-556.64,0.00019726,2]
[329263891,1718205048686,-500.0,0.00019726,2]
[329263892,1718205048697,-500.0,0.00019726,2]
[329263893,1718205048707,-366.11348732,0.00019726,2]
[329263894,1718205048717,-500.0,0.00019726,2]
[329263895,1718205048749,-500.0,0.00019726,2]
[329263896,1718205048760,-515.7,0.00019726,2]
[329263897,1718205048770,-701.68,0.00019726,2]
[329263898,1718205048784,-500.0,0.00019726,2]
[329263899,1718205048796,-1738.64,0.00019726,2]
[329263900,1718205048810,-500.0,0.00019726,2]
[329263901,1718205048821,-704.01,0.00019726,2]
[329263902,1718205048833,-500.0,0.00019726,2]
[329263903,1718205048845,-500.0,0.00019726,2]
[329263904,1718205048856,-500.0,0.00019726,2]
[329263905,1718205048867,-1166.42,0.00019726,2]
[329263906,1718205048878,-1067.35,0.00019726,2]
[329263907,1718205048895,-561.2,0.00019726,2]
[329263908,1718205048906,-1212.67,0.00019726,2]
[329263909,1718205048917,-780.25,0.00019726,2]
[329263910,1718205048933,-991.6,0.00019726,2]
[329263911,1718205048946,-1190.52,0.00019726,2]
[329263912,1718205048962,-1014.23,0.00019726,2]
[329263913,1718205048975,-547.32,0.00019726,2]
[329263914,1718205048987,-3141.57,0.00019726,2]
[329263915,1718205048998,-670.27,0.00019726,2]
[329263916,1718205049009,-977.65,0.00019726,2]
[329263917,1718205049019,-609.32,0.00019726,2]
[329263918,1718205049030,-963.75,0.00019726,2]
[329263919,1718205049041,-670.97,0.00019726,2]
[329263920,1718205049055,-630.42,0.00019726,2]
[329263921,1718205049073,-2138.16,0.00019726,2]
[329263922,1718205049091,-650.2,0.00019726,2]
[329263923,1718205049107,-607.7,0.00019726,2]
[329263924,1718205049127,-500.0,0.00019726,2]
[329263925,1718205049145,-500.0,0.00019726,2]
[329263926,1718205049157,-1199.08,0.00019726,2]
[329263927,1718205049174,-2003.87,0.00019726,2]
[329263928,1718205049189,-856.08,0.00019726,2]
[329263929,1718205049208,-2756.64,0.00019726,2]
[329263930,1718205049221,-614.98,0.00019726,2]
[329263931,1718205049234,-1019.92,0.00019726,2]
[329263932,1718205049245,-1351.67,0.00019726,2]
[329263933,1718205049256,-500.0,0.00019726,2]
[329263934,1718205049267,-814.36,0.00019726,2]
[329263935,1718205049279,-2577.01,0.00019726,2]
[329263936,1718205049293,-500.0,0.00019726,2]
[329263937,1718205049307,-500.0,0.00019726,2]
[329263938,1718205049326,-735.78,0.00019726,2]
[329263939,1718205049341,-1138.78,0.00019726,2]
[329263940,1718205049370,-809.91,0.00019726,2]
[329263941,1718205049394,-1692.1,0.00019726,2]
[329263942,1718205049415,-500.0,0.00019726,2]
[329263943,1718205049439,-834.93,0.00019726,2]
[329263944,1718205049475,-194.0563715,0.00019763,2]
[329263945,1718205049511,-1000.0,0.00019857,2]
[329263946,1718205049536,-500.0,0.00019863,2]
[329263947,1718205049550,-500.0,0.00019863,2]
[329263948,1718205049568,-500.0,0.00019863,2]
[329263949,1718205049580,-500.0,0.00019863,2]
[329263950,1718205049594,-500.0,0.00019863,2]
[329263951,1718205049609,-500.0,0.00019863,2]
[329263952,1718205049633,-500.0,0.00019863,2]
[329263953,1718205049662,-500.0,0.00019863,2]
[329263954,1718205049688,-500.0,0.00019863,2]
[329263955,1718205049707,-662.11,0.00019863,2]
[329263956,1718205049744,-500.0,0.00019863,2]
[329263957,1718205049756,-500.0,0.00019863,2]
[329263958,1718205049772,-500.0,0.00019863,2]
[329263959,1718205049785,-500.0,0.00019863,2]
[329263960,1718205049805,-500.0,0.00019863,2]
[329263961,1718205049817,-500.0,0.00019863,2]
[329263962,1718205049833,-500.0,0.00019863,2]
[329263963,1718205049848,-500.0,0.00019863,2]
[329263964,1718205049891,-500.0,0.00019863,2]
[329263965,1718205050001,-500.0,0.00019863,2]
[329263966,1718205050031,-500.0,0.00019863,2]
[329263967,1718205050049,-500.0,0.00019863,2]
[329263968,1718205050063,-500.0,0.00019863,2]
[329263969,1718205050075,-500.0,0.00019863,2]
[329263970,1718205050092,-500.0,0.00019863,2]
[329263971,1718205050108,-500.0,0.00019863,2]
[329263972,1718205050128,-1175.58,0.00019863,2]
[329263973,1718205050153,-500.0,0.00019863,2]
[329263974,1718205050165,-500.0,0.00019863,2]
[329263975,1718205050204,-500.0,0.00019863,2]
[329263976,1718205050226,-233.20878973,0.00019863,2]
[329263977,1718205050246,-151.21122636,0.00019863,2]
[329263978,1718205050262,-773.38,0.00019863,2]
[329263979,1718205050277,-500.0,0.00019863,2]
[329263980,1718205050299,-500.0,0.00019863,2]
[329263981,1718205050312,-500.0,0.00019863,2]
[329263982,1718205050325,-500.0,0.00019863,2]
[329263983,1718205050338,-500.0,0.00019863,2]
[329263984,1718205050364,-500.0,0.00019863,2]
[329263985,1718205050379,-500.0,0.00019863,2]
[329263986,1718205050390,-500.0,0.00019863,2]
[329263987,1718205050406,-504.69,0.00019863,2]
[329263988,1718205050423,-500.0,0.00019863,2]
[329263989,1718205050438,-855.36,0.00019863,2]
[329263990,1718205050453,-500.0,0.00019863,2]
[329263991,1718205050470,-500.0,0.00019863,2]
[329263992,1718205050491,-586.23,0.00019863,2]
[329263993,1718205050524,-596.37,0.00019863,2]
[329263994,1718205050542,-491.0,0.00019863,2]
[329263995,1718205050569,-500.0,0.00019863,2]
[329263996,1718205050581,-500.0,0.00019863,2]
[329263997,1718205050605,-500.0,0.00019863,2]
[329263998,1718205050633,-500.0,0.00019863,2]
[329263999,1718205050648,-500.0,0.00019863,2]
[329264000,1718205050661,-478.98319493,0.00019863,2]
[329264001,1718205050673,-500.0,0.00019863,2]
[329264002,1718205050707,-500.0,0.00019863,2]
[329264003,1718205050718,-500.0,0.00019863,2]
[329264004,1718205050731,-486.17270091,0.00019863,2]
[329264005,1718205050756,-1292.71,0.00019863,2]
[329264006,1718205050767,-500.0,0.00019863,2]
[329264007,1718205050784,-500.0,0.00019863,2]
[329264008,1718205050798,-556.64,0.00019863,2]
[329264009,1718205050816,-500.0,0.00019863,2]
[329264010,1718205050843,-500.0,0.00019863,2]
[329264011,1718205050864,-500.0,0.00019863,2]
[329264012,1718205050886,-500.0,0.00019863,2]
[329264013,1718205050916,-515.7,0.00019863,2]
[329264014,1718205050926,-701.68,0.00019863,2]
[329264015,1718205050938,-500.0,0.00019863,2]
[329264016,1718205050965,-1738.64,0.00019863,2]
[329264017,1718205050986,-500.0,0.00019863,2]
[329264018,1718205050998,-704.01,0.00019863,2]
[329264019,1718205051011,-500.0,0.00019863,2]
[329264020,1718205051023,-500.0,0.00019863,2]
[329264021,1718205051037,-500.0,0.00019863,2]
[329264022,1718205051048,-1166.42,0.00019863,2]
[329264023,1718205051064,-1067.35,0.00019863,2]
[329264024,1718205051076,-561.2,0.00019863,2]
[329264025,1718205051109,-1212.67,0.00019863,2]
[329264026,1718205051126,-780.25,0.00019863,2]
[329264027,1718205051141,-991.6,0.00019863,2]
[329264029,1718205051167,-1190.52,0.00019863,2]
[329264030,1718205051203,-1014.23,0.00019863,2]
[329264031,1718205051223,-547.32,0.00019863,2]
[329264032,1718205051236,-3141.57,0.00019863,2]
[329264033,1718205051267,-670.27,0.00019863,2]
[329264034,1718205051283,-977.65,0.00019863,2]
[329264035,1718205051296,-609.32,0.00019863,2]
[329264036,1718205051307,-963.75,0.00019863,2]
[329264037,1718205051320,-670.97,0.00019863,2]
[329264038,1718205051345,-630.42,0.00019863,2]
[329264039,1718205051371,-2138.16,0.00019863,2]
[329264040,1718205051395,-650.2,0.00019863,2]
[329264041,1718205051413,-607.7,0.00019863,2]
[329264042,1718205051427,-500.0,0.00019863,2]
[329264043,1718205051456,-500.0,0.00019863,2]
[329264044,1718205051481,-1199.08,0.00019863,2]
[329264045,1718205051492,-2003.87,0.00019863,2]
[329264046,1718205051539,-856.08,0.00019863,2]
[329264047,1718205051562,-2756.64,0.00019863,2]
[329264048,1718205051587,-614.98,0.00019863,2]
[329264049,1718205051608,-1019.92,0.00019863,2]
[329264050,1718205051621,-1351.67,0.00019863,2]
[329264051,1718205051637,-500.0,0.00019863,2]
[329264052,1718205051653,-814.36,0.00019863,2]
[329264053,1718205051667,-2577.01,0.00019863,2]
[329264054,1718205051678,-339.52,0.00019863,2]
[329264055,1718205051697,-338.17,0.00019863,2]
[329264056,1718205051718,-735.78,0.00019863,2]
[329264057,1718205051749,-1138.78,0.00019863,2]
[329264058,1718205051764,-809.91,0.00019863,2]
[329264059,1718205051787,-1692.1,0.00019863,2]
[329264060,1718205051805,-500.0,0.00019863,2]
[329264061,1718205051820,-1980.83866895,0.0002,2]
[329264062,1718205051838,-549.50595062,0.0002,2]
[329264063,1718205051849,-3893.9489826,0.0002,2]
[329264064,1718205051863,-500.0,0.0002,2]
[329264065,1718205051879,-500.0,0.0002,2]
[329264066,1718205051890,-500.0,0.0002,2]
[329264067,1718205051901,-500.0,0.0002,2]
[329264068,1718205051911,-500.0,0.0002,2]
[329264069,1718205051929,-500.0,0.0002,2]
[329264070,1718205051943,-500.0,0.0002,2]
[329264071,1718205051954,-500.0,0.0002,2]
[329264072,1718205051969,-500.0,0.0002,2]
[329264073,1718205051991,-662.11,0.0002,2]
[329264074,1718205052005,-500.0,0.0002,2]
[329264075,1718205052019,-500.0,0.0002,2]
[329264076,1718205052031,-526.86054694,0.0002,2]
[329264077,1718205052042,-500.0,0.0002,2]
[329264078,1718205052053,-500.0,0.0002,2]
[329264079,1718205052065,-500.0,0.0002,2]
[329264080,1718205052077,-500.0,0.0002,2]
[329264081,1718205052097,-500.0,0.0002,2]
[329264082,1718205052112,-500.0,0.0002,2]
[329264083,1718205052132,-342.90827983,0.0002,2]
[329264084,1718205052151,-500.0,0.0002,2]
[329264085,1718205052164,-618.52091797,0.0002,2]
[329264086,1718205052183,-500.0,0.0002,2]
[329264087,1718205052201,-500.0,0.0002,2]
[329264088,1718205052213,-500.0,0.0002,2]
[329264089,1718205052232,-500.0,0.0002,2]
[329264090,1718205052242,-1175.58,0.0002,2]
[329264091,1718205052265,-500.0,0.0002,2]
[329264092,1718205052296,-500.0,0.0002,2]
[329264093,1718205052310,-500.0,0.0002,2]
[329264096,1718205052337,-773.38,0.0002,2]
[329264101,1718205052359,-500.0,0.0002,2]
[329264106,1718205052376,-500.0,0.0002,2]
[329264110,1718205052394,-571.0619614,0.0002,2]
[329264117,1718205052416,-500.0,0.0002,2]
[329264121,1718205052433,-500.0,0.0002,2]
[329264125,1718205052449,-500.0,0.0002,2]
[329264129,1718205052461,-500.0,0.0002,2]
[329264134,1718205052477,-500.0,0.0002,2]
[329264137,1718205052511,-504.69,0.0002,2]
[329264139,1718205052526,-500.0,0.0002,2]
[329264140,1718205052544,-855.36,0.0002,2]
[329264143,1718205052562,-500.0,0.0002,2]
[329264145,1718205052587,-500.0,0.0002,2]
[329264147,1718205052609,-586.23,0.0002,2]
[329264150,1718205052629,-596.37,0.0002,2]
[329264151,1718205052651,-500.0,0.0002,2]
[329264153,1718205052661,-500.0,0.0002,2]
[329264155,1718205052677,-500.0,0.0002,2]
[329264157,1718205052689,-500.0,0.0002,2]
[329264159,1718205052701,-500.0,0.0002,2]
[329264161,1718205052713,-500.0,0.0002,2]
[329264163,1718205052723,-500.0,0.0002,2]
[329264165,1718205052745,-500.0,0.0002,2]
[329264167,1718205052762,-1292.71,0.0002,2]
[329264170,1718205052786,-500.0,0.0002,2]
[329264172,1718205052802,-500.0,0.0002,2]
[329264174,1718205052816,-556.64,0.0002,2]
[329264176,1718205052829,-500.0,0.0002,2]
[329264178,1718205052840,-500.0,0.0002,2]
[329264180,1718205052852,-500.0,0.0002,2]
[329264182,1718205052870,-500.0,0.0002,2]
[329264184,1718205052883,-515.7,0.0002,2]
[329264186,1718205052900,-701.68,0.0002,2]
[329264188,1718205052913,-500.0,0.0002,2]
[329264190,1718205052926,-1738.64,0.0002,2]
[329264192,1718205052947,-500.0,0.0002,2]
[329264194,1718205052962,-704.01,0.0002,2]
[329264197,1718205052986,-500.0,0.0002,2]
[329264199,1718205053004,-500.0,0.0002,2]
[329264200,1718205053017,-500.0,0.0002,2]
[329264202,1718205053028,-1166.42,0.0002,2]
[329264203,1718205053041,-1067.35,0.0002,2]
[329264205,1718205053053,-561.2,0.0002,2]
[329264207,1718205053069,-1212.67,0.0002,2]
[329264209,1718205053084,-780.25,0.0002,2]
[329264211,1718205053096,-991.6,0.0002,2]
[329264212,1718205053107,-1190.52,0.0002,2]
[329264214,1718205053119,-1014.23,0.0002,2]
[329264215,1718205053145,-547.32,0.0002,2]
[329264217,1718205053161,-3141.57,0.0002,2]
[329264219,1718205053184,-670.27,0.0002,2]
[329264222,1718205053204,-977.65,0.0002,2]
[329264224,1718205053214,-609.32,0.0002,2]
[329264226,1718205053232,-963.75,0.0002,2]
[329264228,1718205053252,-670.97,0.0002,2]
[329264231,1718205053278,-630.42,0.0002,2]
[329264232,1718205053290,-2138.16,0.0002,2]
[329264234,1718205053301,-650.2,0.0002,2]
[329264235,1718205053312,-607.7,0.0002,2]
[329264237,1718205053329,-500.0,0.0002,2]
[329264239,1718205053341,-500.0,0.0002,2]
[329264241,1718205053354,-1199.08,0.0002,2]
[329264243,1718205053364,-1275.71521208,0.0002,2]
[329264244,1718205053391,-2003.87,0.0002,2]
[329264247,1718205053407,-856.08,0.0002,2]
[329264251,1718205053432,-2756.64,0.0002,2]
[329264254,1718205053467,-614.98,0.0002,2]
[329264257,1718205053479,-1019.92,0.0002,2]
[329264258,1718205053491,-1351.67,0.0002,2]
[329264260,1718205053514,-500.0,0.0002,2]
[329264261,1718205053529,-1781.32992675,0.0002,2]
[329264264,1718205053545,-814.36,0.0002,2]
[329264267,1718205053562,-2577.01,0.0002,2]
[329264270,1718205053573,-735.78,0.0002,2]
[329264272,1718205053588,-1138.78,0.0002,2]
[329264274,1718205053601,-809.91,0.0002,2]
[329264276,1718205053618,-1692.1,0.0002,2]
[329264278,1718205053646,-575.9546956,0.0002,2]
[329264280,1718205053661,-7600.0,0.0002009,2]
[329264283,1718205053686,-226.74152349,0.000201,2]
[329264285,1718205053701,-500.0,0.00020136,2]
[329264287,1718205053713,-500.0,0.00020136,2]
[329264288,1718205053724,-500.0,0.00020136,2]
[329264290,1718205053739,-500.0,0.00020136,2]
[329264292,1718205053752,-500.0,0.00020136,2]
[329264294,1718205053769,-500.0,0.00020136,2]
[329264296,1718205053793,-500.0,0.00020136,2]
[329264298,1718205053804,-506.9018783,0.00020136,2]
[329264300,1718205053817,-500.0,0.00020136,2]
[329264302,1718205053828,-662.11,0.00020136,2]
[329264304,1718205053840,-500.0,0.00020136,2]
[329264306,1718205053851,-500.0,0.00020136,2]
[329264308,1718205053862,-500.0,0.00020136,2]
[329264310,1718205053880,-531.70149387,0.00020136,2]
[329264312,1718205053893,-500.0,0.00020136,2]
[329264314,1718205053907,-500.0,0.00020136,2]
[329264317,1718205053932,-500.0,0.00020136,2]
[329264319,1718205053945,-500.0,0.00020136,2]
[329264321,1718205053963,-500.0,0.00020136,2]
[329264323,1718205053980,-500.0,0.00020136,2]
[329264325,1718205054012,-500.0,0.00020136,2]
[329264327,1718205054028,-500.0,0.00020136,2]
[329264329,1718205054040,-500.0,0.00020136,2]
[329264330,1718205054054,-1175.58,0.00020136,2]
[329264332,1718205054077,-500.0,0.00020136,2]
[329264334,1718205054090,-541.44636111,0.00020136,2]
[329264336,1718205054106,-773.38,0.00020136,2]
[329264338,1718205054127,-500.0,0.00020136,2]
[329264340,1718205054151,-513.09395233,0.00020136,2]
[329264342,1718205054168,-500.0,0.00020136,2]
[329264344,1718205054179,-567.54,0.00020136,2]
[329264347,1718205054196,-500.0,0.00020136,2]
[329264349,1718205054210,-500.0,0.00020136,2]
[329264351,1718205054224,-504.69,0.00020136,2]
[329264353,1718205054244,-500.0,0.00020136,2]
[329264355,1718205054256,-855.36,0.00020136,2]
[329264356,1718205054270,-337.62,0.00020136,2]
[329264358,1718205054283,-500.0,0.00020136,2]
[329264360,1718205054303,-586.23,0.00020136,2]
[329264362,1718205054317,-596.37,0.00020136,2]
[329264364,1718205054330,-500.0,0.00020136,2]
[329264366,1718205054346,-500.0,0.00020136,2]
[329264368,1718205054357,-500.0,0.00020136,2]
[329264370,1718205054368,-500.0,0.00020136,2]
[329264372,1718205054379,-500.0,0.00020136,2]
[329264374,1718205054392,-497.73670152,0.00020136,2]
[329264376,1718205054405,-1292.71,0.00020136,2]
[329264378,1718205054418,-500.0,0.00020136,2]
[329264380,1718205054435,-500.0,0.00020136,2]
[329264383,1718205054459,-556.64,0.00020136,2]
[329264385,1718205054480,-500.0,0.00020136,2]
[329264387,1718205054515,-500.0,0.00020136,2]
[329264389,1718205054531,-500.0,0.00020136,2]
[329264391,1718205054546,-500.0,0.00020136,2]
[329264394,1718205054562,-515.7,0.00020136,2]
[329264395,1718205054576,-701.68,0.00020136,2]
[329264397,1718205054589,-500.0,0.00020136,2]
[329264399,1718205054600,-1738.64,0.00020136,2]
[329264402,1718205054627,-500.0,0.00020136,2]
[329264404,1718205054639,-704.01,0.00020136,2]
[329264405,1718205054650,-500.0,0.00020136,2]
[329264407,1718205054661,-500.0,0.00020136,2]
[329264409,1718205054673,-500.0,0.00020136,2]
[329264411,1718205054686,-1166.42,0.00020136,2]
[329264413,1718205054700,-1067.35,0.00020136,2]
[329264415,1718205054714,-561.2,0.00020136,2]
[329264417,1718205054725,-780.25,0.00020136,2]
[329264419,1718205054737,-1212.67,0.00020136,2]
[329264421,1718205054748,-991.6,0.00020136,2]
[329264423,1718205054761,-1190.52,0.00020136,2]
[329264425,1718205054773,-1014.23,0.00020136,2]
[329264427,1718205054786,-547.32,0.00020136,2]
[329264429,1718205054807,-3141.57,0.00020136,2]
[329264431,1718205054835,-670.27,0.00020136,2]
[329264433,1718205054857,-977.65,0.00020136,2]
[329264436,1718205054893,-609.32,0.00020136,2]
[329264438,1718205054905,-963.75,0.00020136,2]
[329264440,1718205054924,-670.97,0.00020136,2]
[329264442,1718205054935,-630.42,0.00020136,2]
[329264444,1718205054950,-2138.16,0.00020136,2]
[329264447,1718205054963,-650.2,0.00020136,2]
[329264448,1718205054984,-607.7,0.00020136,2]
[329264450,1718205054995,-500.0,0.00020136,2]
[329264452,1718205055008,-500.0,0.00020136,2]
[329264455,1718205055023,-1199.08,0.00020136,2]
[329264456,1718205055034,-2003.87,0.00020136,2]
[329264460,1718205055068,-856.08,0.00020136,2]
[329264462,1718205055104,-2756.64,0.00020136,2]
[329264465,1718205055132,-614.98,0.00020136,2]
[329264467,1718205055148,-1019.92,0.00020136,2]
[329264470,1718205055169,-1351.67,0.00020136,2]
[329264471,1718205055191,-500.0,0.00020136,2]
[329264473,1718205055204,-2577.01,0.00020136,2]
[329264475,1718205055219,-814.36,0.00020136,2]
[329264477,1718205055237,-735.78,0.00020136,2]
[329264479,1718205055250,-1138.78,0.00020136,2]
[329264481,1718205055272,-809.91,0.00020136,2]
[329264483,1718205055291,-1692.1,0.00020136,2]
[329264485,1718205055303,-12431.0,0.00020202,2]
[329264487,1718205055316,-500.0,0.00020273,2]
[329264489,1718205055331,-500.0,0.00020273,2]
[329264491,1718205055343,-500.0,0.00020273,2]
[329264493,1718205055354,-500.0,0.00020273,2]
[329264495,1718205055368,-590.19153261,0.00020273,2]
[329264497,1718205055386,-500.0,0.00020273,2]
[329264499,1718205055398,-500.0,0.00020273,2]
[329264501,1718205055410,-500.0,0.00020273,2]
[329264504,1718205055433,-662.11,0.00020273,2]